fUSD/lending_fUSD_20240103
["ID","MTS","AMOUNT","RATE_DAILY","PERIOD"]
[310073426,1704303041721,-153.38227332,0.00029981,2]
[310073428,1704303041732,-209.98,0.0002999,10]
[310073430,1704303041744,-361.05118527,0.00029996,2]
[310073432,1704303041755,-722.60032246,0.00029997,2]
[310073434,1704303041766,-155.0,0.00029997,2]
[310073436,1704303041777,-269.95716749,0.00029997,2]
[310073439,1704303041789,-155.0,0.00029998,2]
[310073441,1704303041800,-196.30617543,0.00029998,2]
[310073443,1704303041810,-383.42158832,0.00029998,2]
[310073445,1704303041821,-176.89,0.00029998,2]
[310073447,1704303041832,-937.8219451,0.00029999,2]
[310073449,1704303041843,-4262.39669008,0.0003,4]
[310073485,1704303043158,-303471.94256725,0.0003,4]
[310073486,1704303043168,-155.0,0.0003,2]
[310073487,1704303043180,-1847.32592572,0.0003,5]
[310073488,1704303043190,-500.0,0.0003,2]
[310073489,1704303043201,-155.39,0.00030084,2]
[310073490,1704303043212,-240.0,0.00030095,2]
[310073491,1704303043223,-153.84,0.00030209,2]
[310073492,1704303043235,-155.39,0.00030272,2]
[310073493,1704303043246,-159.11,0.00030333,2]
[310073494,1704303043256,-155.39,0.0003046,2]
[310073495,1704303043268,-400.0,0.00030556,2]
[310073496,1704303043280,-178.56,0.00030583,2]
[310073497,1704303043291,-155.39,0.00030648,2]
[310073498,1704303043302,-153.38227332,0.00030677,2]
[310073499,1704303043313,-170.47902395,0.00030701,4]
[310073500,1704303043325,-365.98,0.00030748,2]
[310073501,1704303043337,-155.39,0.00030836,2]
[310073502,1704303043349,-805.70629213,0.000309,5]
[310073503,1704303043360,-171.36287435,0.0003099,2]
[310073504,1704303043372,-1350.0,0.00031,3]
[310073505,1704303043383,-108038.38597435,0.00031,2]
[310073506,1704303043421,-1313.79485174,0.00031,2]
[310073521,1704303046511,-105.9516663,0.000299,2]
[310073522,1704303046532,-325.48111076,0.000299,2]
[310073523,1704303046541,-698.21888924,0.00031,2]
[310073524,1704303046554,-532.98005436,0.00031,2]
[310073525,1704303046566,-6085.59314579,0.00031,2]
[310073526,1704303046591,-431.60659171,0.00031,2]
[310073527,1704303046602,-7889.86982177,0.00031,2]
[310073528,1704303046622,-16214.61701175,0.00031,2]
[310073532,1704303085261,499.99999999,0.00022999,4]
[310073537,1704303385345,500.0,0.00022999,4]
[310073572,1704303680255,500.0,0.00022999,4]
[310073593,1704303882860,2605.87309653,0.00010959,3]
[310073597,1704303950223,500.0,0.00022999,4]
[310073673,1704304175753,500.0,0.00022999,4]
[310073696,1704304232125,-392.70096984,0.00026999,2]
[310073713,1704304232371,-107.30369897,0.00026999,2]
[310073714,1704304232381,-646.41316042,0.00027,2]
[310073715,1704304232394,-470.94352157,0.00027,2]
[310073716,1704304232431,-13365.70579941,0.00027,2]
[310073720,1704304238081,-415.94592852,0.00027,2]
[310073727,1704304238143,-1302.79398952,0.00027,2]
[310073728,1704304238154,-634.53397336,0.00027,2]
[310073729,1704304238258,-28231.94673512,0.00027,2]
[310073730,1704304238267,-1250.0,0.00027,3]
[310073731,1704304238277,-153.38227332,0.00027297,2]
[310073732,1704304238287,-1000.0,0.00027298,2]
[310073733,1704304238296,-417.22,0.00027298,2]
[310073734,1704304238306,-292.8,0.0002887,2]
[310073735,1704304238316,-328.75,0.00028881,2]
[310073736,1704304238325,-4861.82,0.00028884,2]
[310073737,1704304238338,-206.0,0.00028937,2]
[310073738,1704304238348,-1300.0,0.00029,3]
[310073739,1704304238358,-229.52,0.00029013,2]
[310073740,1704304238368,-23900.0,0.00029015,2]
[310073741,1704304238378,-427.11,0.00029015,2]
[310073742,1704304238387,-166.97,0.00029015,2]
[310073743,1704304238397,-240.0,0.00029096,2]
[310073744,1704304238407,-499.99,0.00029096,2]
[310073745,1704304238417,-150.0,0.00029154,2]
[310073746,1704304238427,-179.54,0.00029177,2]
[310073747,1704304238436,-2000.0,0.00029222,2]
[310073748,1704304238446,-250.0,0.00029222,2]
[310073749,1704304238455,-355.67,0.00029321,2]
[310073750,1704304238465,-152.0,0.00029375,10]
[310073751,1704304238475,-304.14,0.00029375,10]
[310073752,1704304238485,-30879.4459,0.00029385,2]
[310073753,1704304238494,-157.16,0.00029441,2]
[310073754,1704304238503,-204.47476943,0.00029506,6]
[310073755,1704304238513,-3516.969,0.00029507,2]
[310073756,1704304238523,-436.7,0.00029511,2]
[310073757,1704304238533,-417.22,0.00029562,2]
[310073758,1704304238543,-2106.0347,0.0002957,2]
[310073759,1704304238553,-760.0,0.00029607,2]
[310073760,1704304238563,-9999.99,0.00029607,2]
[310073761,1704304238573,-3176.77792395,0.00029758,2]
[310073762,1704304238584,-2505.20712894,0.000298,2]
[310073763,1704304238597,-1187.72123267,0.000298,2]
[310073764,1704304238618,-62391.81133839,0.000298,2]
[310073765,1704304238628,-328.75,0.00029859,2]
[310073766,1704304238638,-300.0,0.000299,2]
[310073767,1704304238648,-157.16,0.00029952,2]
[310073768,1704304238658,-179.37,0.0002999,2]
[310073769,1704304238669,-16028.06340553,0.0003,4]
[310073770,1704304238682,-2377.36046175,0.0003,4]
[310073771,1704304238692,-155.0,0.0003,2]
[310073772,1704304238703,-153.38227332,0.00030036,2]
[310073774,1704304238713,-392.70096984,0.00030378,4]
[310073776,1704304238725,-157.16,0.00030463,2]
[310073778,1704304238734,-2315.32302432,0.000305,2]
[310073780,1704304238745,-224.5296307,0.00030625,14]
[310073782,1704304238754,-193.00559714,0.00030701,4]
[310073783,1704304238764,-150.00000001,0.00030713,2]
[310073784,1704304238773,-179.37,0.0003074,2]
[310073785,1704304238782,-38507.6363,0.000308,2]
[310073786,1704304238792,-336.40953216,0.000308,2]
[310073787,1704304238801,-328.75,0.00030838,2]
[310073788,1704304238811,-6079.2175,0.000309,2]
[310073789,1704304238821,-48620.9039,0.000309,2]
[310073790,1704304238831,-252.88919685,0.000309,2]
[310073791,1704304238840,-157.16,0.00030975,2]
[310073792,1704304238850,-162.97261534,0.0003099,2]
[310073793,1704304238859,-155.0,0.00030998,4]
[310073794,1704304238869,-4375.35500946,0.00030998,4]
[310073796,1704304238878,-155.43758441,0.00030998,4]
[310073798,1704304238887,-304.18873632,0.00030998,4]
[310073800,1704304238896,-155.1724512,0.00030998,4]
[310073802,1704304238906,-1507.63255675,0.00030998,2]
[310073804,1704304238915,-233.300331,0.00030998,4]
[310073806,1704304238926,-314.96962006,0.00030999,4]
[310073808,1704304238935,-7802.95437135,0.00030999,2]
[310073810,1704304238945,-221.09206895,0.00030999,4]
[310073812,1704304238954,-208794.93365929,0.00031,2]
[310073814,1704304238964,-1000.0,0.00031,120]
[310073817,1704304238976,-122436.01552918,0.00031,5]
[310073828,1704304238989,-4361.03208289,0.00031,5]
[310073830,1704304239088,-1797.91698902,0.00031,5]
[310073833,1704304239104,-3251.32243701,0.00031,5]
[310073842,1704304239176,-678.22150474,0.00031,5]
[310073845,1704304239198,-32593.84337105,0.00031,5]
[310073847,1704304239207,-2000.0,0.00031,2]
[310073849,1704304239217,-200.0,0.00031,2]
[310073851,1704304239228,-1350.0,0.00031,3]
[310073852,1704304239237,-2989.52466,0.00031,2]
[310073854,1704304239247,-155.39,0.00031024,2]
[310073856,1704304239257,-152.07802936,0.00031232,2]
[310073858,1704304239266,-206.0,0.00031327,6]
[310073860,1704304239275,-731.36,0.00031369,2]
[310073862,1704304239284,-336.40953216,0.00031433,2]
[310073864,1704304239293,-179.37,0.0003149,2]
[310073866,1704304239302,-2099.0,0.000317,2]
[310073867,1704304239312,-153.84,0.00031745,2]
[310073869,1704304239321,-3040.08428288,0.0003179,2]
[310073870,1704304239332,-2989.52466,0.0003179,2]
[310073871,1704304239341,-688.7311994,0.00031791,4]
[310073872,1704304239351,-151.29277846,0.000318,2]
[310073873,1704304239361,-155.0,0.000318,2]
[310073874,1704304239371,-26522.9671072,0.000318,3]
[310073875,1704304239381,-223.81,0.000318,2]
[310073876,1704304239391,-328.75,0.00031816,2]
[310073877,1704304239405,-417.22,0.00031826,2]
[310073878,1704304239415,-500.0,0.00032,10]
[310073879,1704304239424,-300.0,0.00032,2]
[310073881,1704304239433,-300.0,0.00032,2]
[310073883,1704304239443,-300.0,0.00032,2]
[310073885,1704304239452,-500.0,0.00032,2]
[310073887,1704304239462,-159.11,0.00032123,2]
[310073889,1704304239471,-179.37,0.0003224,2]
[310073891,1704304239483,-345.62138286,0.00032284,14]
[310073893,1704304239492,-1277.04,0.00032284,2]
[310073895,1704304239501,-2265.0,0.00032284,2]
[310073897,1704304239510,-3894.148,0.00032284,2]
[310073899,1704304239519,-1127.581,0.00032284,2]
[310073901,1704304239529,-1026.0,0.00032284,2]
[310073903,1704304239538,-151.0,0.0003232,120]
[310073905,1704304239548,-596.04729822,0.00032407,2]
[310073907,1704304239558,-239.09408116,0.00032446,4]
[310073909,1704304239567,-7500.0,0.00032454,2]
[310073911,1704304239576,-1122901.61514004,0.000325,2]
[310073913,1704304239585,-6647.42558936,0.00032561,7]
[310073915,1704304239594,-15633.28842374,0.00032561,7]
[310073917,1704304239604,-9259.1583752,0.00032563,7]
[310073919,1704304239613,-39855.15057536,0.00032563,7]
[310073921,1704304239622,-24698.69401059,0.00032563,7]
[310073923,1704304239631,-66596.17420855,0.00032563,7]
[310073925,1704304239641,-596.04729818,0.00032568,2]
[310073927,1704304239650,-1214.99986376,0.000326,4]
[310073929,1704304239659,-150.86287723,0.00032676,2]
[310073931,1704304239670,-155.0,0.00032698,4]
[310073935,1704304239691,-6295.01497044,0.000327,2]
[310073937,1704304239701,-6295.01497028,0.000327,2]
[310073939,1704304239711,-6295.01497028,0.000327,2]
[310073941,1704304239720,-6295.01497028,0.000327,2]
[310073943,1704304239730,-6295.01497028,0.000327,2]
[310073944,1704304239740,-6295.01497028,0.000327,2]
[310073947,1704304239750,-6295.01497028,0.000327,2]
[310073948,1704304239760,-6295.01497028,0.000327,2]
[310073950,1704304239769,-184.81472349,0.000327,2]
[310073952,1704304239779,-6295.01497028,0.000327,2]
[310073954,1704304239789,-6295.01497028,0.000327,2]
[310073957,1704304239798,-6295.01497028,0.000327,2]
[310073959,1704304239808,-6295.01497028,0.000327,2]
[310073961,1704304239817,-6295.01497028,0.000327,2]
[310073963,1704304239827,-6295.01497028,0.000327,2]
[310073965,1704304239836,-6295.01497028,0.000327,2]
[310073967,1704304239847,-482.6856577,0.000327,2]
[310073968,1704304239857,-6295.01497028,0.000327,2]
[310073971,1704304239867,-153.84,0.00032707,2]
[310073973,1704304239876,-596.04729818,0.00032729,2]
[310073975,1704304239885,-240.0,0.00032733,2]
[310073977,1704304239896,-400.26,0.00032759,2]
[310073979,1704304239905,-761.3017059,0.00032772,4]
[310073981,1704304239914,-1000.0,0.00032773,2]
[310073983,1704304239923,-1000.0,0.00032773,2]
[310073985,1704304239932,-1000.0,0.00032773,2]
[310073987,1704304239941,-1000.0,0.00032773,2]
[310073989,1704304239950,-1000.0,0.00032773,2]
[310073991,1704304239959,-1000.0,0.00032773,2]
[310073992,1704304239968,-1000.0,0.00032773,2]
[310073994,1704304239978,-1000.0,0.00032773,2]
[310073996,1704304239987,-1000.0,0.00032773,2]
[310073998,1704304239997,-1000.0,0.00032773,2]
[310074000,1704304240005,-1000.0,0.00032773,2]
[310074002,1704304240014,-1000.0,0.00032773,2]
[310074004,1704304240025,-1131.26390566,0.00032773,2]
[310074006,1704304240035,-159.98061969,0.00032774,4]
[310074008,1704304240044,-1243.80022253,0.00032774,4]
[310074010,1704304240053,-4282.16304304,0.00032774,4]
[310074012,1704304240062,-158.96797182,0.00032774,4]
[310074014,1704304240071,-1769.55009119,0.00032774,4]
[310074016,1704304240080,-335.43991817,0.00032774,10]
[310074018,1704304240090,-3315.33985506,0.00032775,4]
[310074020,1704304240099,-35804.7196614,0.00032775,2]
[310074022,1704304240108,-153.38227332,0.00032775,2]
[310074025,1704304240117,-1892.4332435,0.00032776,4]
[310074027,1704304240126,-55555.0,0.00032776,3]
[310074028,1704304240137,-473.13798249,0.00032776,21]
[310074031,1704304240146,-3020.0,0.00032795,4]
[310074033,1704304240156,-8389.0,0.00032795,4]
[310074035,1704304240165,-1282.80695924,0.00032795,4]
[310074037,1704304240175,-328.75,0.00032795,2]
[310074039,1704304240188,-333.58542,0.00032799,15]
[310074041,1704304240197,-151.0,0.000328,7]
[310074043,1704304240207,-151.0,0.000328,7]
[310074045,1704304240216,-151.0,0.000328,7]
[310074047,1704304240226,-376802.74173317,0.000328,3]
[310074049,1704304240235,-1036163.4696,0.000328,6]
[310074051,1704304240245,-151.0,0.000328,7]
[310074053,1704304240254,-151.0,0.000328,7]
[310074055,1704304240264,-46845.6715499,0.00032875,2]
[310074057,1704304240274,-150.01,0.00032875,2]
[310074059,1704304240284,-3285.13803586,0.00032875,2]
[310074061,1704304240294,-151.0,0.00032876,7]
[310074063,1704304240303,-151.0,0.00032876,7]
[310074065,1704304240313,-151.0,0.00032876,7]
[310074067,1704304240323,-151.0,0.00032876,7]
[310074069,1704304240333,-552.92802433,0.00032876,2]
[310074071,1704304240343,-500.0,0.00032876,2]
[310074073,1704304240352,-500.0,0.00032876,2]
[310074075,1704304240362,-507.35151385,0.00032876,2]
[310074077,1704304240371,-500.0,0.00032876,2]
[310074079,1704304240381,-500.0,0.00032876,2]
[310074081,1704304240390,-530.65621716,0.00032876,2]
[310074083,1704304240400,-502.93746731,0.00032876,2]
[310074085,1704304240410,-2000.0,0.00032876,2]
[310074087,1704304240419,-500.0,0.00032876,2]
[310074089,1704304240429,-500.0,0.00032876,2]
[310074091,1704304240438,-500.0,0.00032876,2]
[310074093,1704304240447,-500.0,0.00032876,2]
[310074095,1704304240457,-500.0,0.00032876,2]
[310074097,1704304240466,-500.0,0.00032876,2]
[310074099,1704304240475,-500.0,0.00032876,2]
[310074101,1704304240485,-468.808734,0.00032876,2]
[310074103,1704304240494,-515.23836212,0.00032876,2]
[310074106,1704304240505,-500.0,0.00032876,2]
[310074108,1704304240514,-500.0,0.00032876,2]
[310074110,1704304240527,-500.0,0.00032876,2]
[310074112,1704304240537,-500.0,0.00032876,2]
[310074114,1704304240547,-500.0,0.00032876,2]
[310074116,1704304240556,-500.0,0.00032876,2]
[310074118,1704304240566,-253.28432755,0.00032876,2]
[310074120,1704304240576,-500.0,0.00032876,2]
[310074122,1704304240586,-500.0,0.00032876,2]
[310074124,1704304240595,-500.0,0.00032876,2]
[310074126,1704304240604,-314.69552646,0.00032876,2]
[310074128,1704304240613,-500.0,0.00032876,2]
[310074130,1704304240623,-500.0,0.00032876,2]
[310074132,1704304240632,-171.53036452,0.00032876,2]
[310074133,1704304240642,-530.96233775,0.00032876,2]
[310074135,1704304240652,-500.0,0.00032876,2]
[310074137,1704304240662,-500.0,0.00032876,2]
[310074139,1704304240671,-500.0,0.00032876,2]
[310074141,1704304240681,-500.0,0.00032876,2]
[310074143,1704304240690,-247.25226987,0.00032876,2]
[310074145,1704304240700,-500.0,0.00032876,2]
[310074147,1704304240709,-591.4099401,0.00032876,2]
[310074149,1704304240719,-500.0,0.00032876,2]
[310074150,1704304240729,-500.0,0.00032876,2]
[310074151,1704304240739,-500.0,0.00032876,2]
[310074152,1704304240749,-500.0,0.00032876,2]
[310074153,1704304240758,-500.0,0.00032876,2]
[310074154,1704304240768,-500.0,0.00032876,2]
[310074155,1704304240777,-500.0,0.00032876,2]
[310074157,1704304240787,-500.0,0.00032876,2]
[310074159,1704304240797,-251.93864288,0.00032876,2]
[310074161,1704304240807,-500.0,0.00032876,2]
[310074163,1704304240817,-500.0,0.00032876,2]
[310074165,1704304240826,-500.0,0.00032876,2]
[310074168,1704304240836,-500.0,0.00032876,2]
[310074170,1704304240846,-298.83753645,0.00032876,2]
[310074172,1704304240855,-500.0,0.00032876,2]
[310074173,1704304240864,-597.00780488,0.00032876,2]
[310074174,1704304240873,-500.0,0.00032876,2]
[310074175,1704304240882,-500.0,0.00032876,2]
[310074176,1704304240891,-343.98696121,0.00032876,2]
[310074177,1704304240901,-500.0,0.00032876,2]
[310074178,1704304240911,-495.77833974,0.00032876,2]
[310074179,1704304240920,-500.0,0.00032876,2]
[310074180,1704304240930,-500.0,0.00032876,2]
[310074181,1704304240939,-500.0,0.00032876,2]
[310074182,1704304240949,-500.0,0.00032876,2]
[310074183,1704304240959,-500.0,0.00032876,2]
[310074184,1704304240968,-500.0,0.00032876,2]
[310074185,1704304240978,-560.70818766,0.00032876,2]
[310074186,1704304240988,-500.00000149,0.00032876,2]
[310074187,1704304240998,-500.0,0.00032876,2]
[310074188,1704304241007,-500.0,0.00032876,2]
[310074189,1704304241016,-500.0,0.00032876,2]
[310074190,1704304241026,-500.0,0.00032876,2]
[310074191,1704304241035,-500.0,0.00032876,2]
[310074192,1704304241044,-500.0,0.00032876,2]
[310074193,1704304241054,-1236.57,0.00032876,2]
[310074194,1704304241063,-1236.57,0.00032876,2]
[310074195,1704304241073,-1236.57,0.00032876,2]
[310074196,1704304241082,-1236.57,0.00032876,2]
[310074197,1704304241092,-1236.57,0.00032876,2]
[310074198,1704304241102,-617.20814938,0.00032876,2]
[310074199,1704304241112,-1236.57,0.00032876,2]
[310074200,1704304241121,-1236.57,0.00032876,2]
[310074201,1704304241130,-1236.57,0.00032876,2]
[310074202,1704304241140,-1236.57,0.00032876,2]
[310074203,1704304241149,-1236.57,0.00032876,2]
[310074204,1704304241159,-1236.57,0.00032876,2]
[310074205,1704304241168,-1236.57,0.00032876,2]
[310074206,1704304241177,-1236.57,0.00032876,2]
[310074207,1704304241187,-1236.57,0.00032876,2]
[310074208,1704304241197,-552.42613315,0.00032876,2]
[310074209,1704304241206,-500.0,0.00032876,2]
[310074210,1704304241216,-500.0,0.00032876,2]
[310074211,1704304241228,-500.0,0.00032876,2]
[310074212,1704304241237,-500.0,0.00032876,2]
[310074213,1704304241247,-500.0,0.00032876,2]
[310074214,1704304241256,-500.0,0.00032876,2]
[310074215,1704304241265,-500.0,0.00032876,2]
[310074216,1704304241275,-5000.0,0.00032876,2]
[310074217,1704304241285,-500.0,0.00032876,2]
[310074218,1704304241294,-500.0,0.00032876,2]
[310074219,1704304241304,-500.0,0.00032876,2]
[310074220,1704304241313,-500.0,0.00032876,2]
[310074221,1704304241323,-500.0,0.00032876,2]
[310074222,1704304241332,-500.0,0.00032876,2]
[310074223,1704304241342,-500.0,0.00032876,2]
[310074224,1704304241351,-500.0,0.00032876,2]
[310074225,1704304241361,-463.31856348,0.00032876,2]
[310074226,1704304241370,-500.0,0.00032876,2]
[310074227,1704304241379,-500.0,0.00032876,2]
[310074228,1704304241389,-500.0,0.00032876,2]
[310074229,1704304241398,-500.0,0.00032876,2]
[310074230,1704304241408,-500.0,0.00032876,2]
[310074231,1704304241417,-500.0,0.00032876,2]
[310074233,1704304241427,-500.0,0.00032876,2]
[310074235,1704304241436,-500.0,0.00032876,2]
[310074236,1704304241446,-500.0,0.00032876,2]
[310074237,1704304241455,-500.0,0.00032876,2]
[310074238,1704304241465,-500.0,0.00032876,2]
[310074239,1704304241474,-500.0,0.00032876,2]
[310074240,1704304241484,-500.0,0.00032876,2]
[310074241,1704304241494,-500.0,0.00032876,2]
[310074242,1704304241503,-500.0,0.00032876,2]
[310074243,1704304241513,-500.0,0.00032876,2]
[310074244,1704304241522,-500.0,0.00032876,2]
[310074245,1704304241533,-374.40596995,0.00032876,2]
[310074246,1704304241543,-500.0,0.00032876,2]
[310074247,1704304241552,-500.0,0.00032876,2]
[310074248,1704304241562,-500.0,0.00032876,2]
[310074249,1704304241571,-500.0,0.00032876,2]
[310074250,1704304241580,-500.0,0.00032876,2]
[310074251,1704304241589,-500.0,0.00032876,2]
[310074252,1704304241599,-500.0,0.00032876,2]
[310074253,1704304241608,-500.0,0.00032876,2]
[310074254,1704304241618,-500.0,0.00032876,2]
[310074255,1704304241628,-500.0,0.00032876,2]
[310074256,1704304241637,-500.0,0.00032876,2]
[310074257,1704304241647,-500.0,0.00032876,2]
[310074258,1704304241657,-500.0,0.00032876,2]
[310074259,1704304241666,-500.0,0.00032876,2]
[310074260,1704304241679,-500.0,0.00032876,2]
[310074261,1704304241689,-500.0,0.00032876,2]
[310074262,1704304241699,-500.0,0.00032876,2]
[310074263,1704304241708,-500.0,0.00032876,2]
[310074264,1704304241718,-500.0,0.00032876,2]
[310074265,1704304241728,-501.98678498,0.00032876,2]
[310074266,1704304241737,-500.0,0.00032876,2]
[310074268,1704304241746,-270.85363027,0.00032876,2]
[310074269,1704304241756,-500.0,0.00032876,2]
[310074270,1704304241765,-500.0,0.00032876,2]
[310074271,1704304241774,-500.0,0.00032876,2]
[310074272,1704304241783,-500.0,0.00032876,2]
[310074273,1704304241792,-500.0,0.00032876,2]
[310074274,1704304241802,-500.0,0.00032876,2]
[310074275,1704304241811,-500.0,0.00032876,2]
[310074276,1704304241820,-500.0,0.00032876,2]
[310074277,1704304241829,-500.0,0.00032876,2]
[310074278,1704304241838,-500.0,0.00032876,2]
[310074279,1704304241847,-500.0,0.00032876,2]
[310074280,1704304241856,-500.0,0.00032876,2]
[310074281,1704304241866,-509.7210131,0.00032876,2]
[310074282,1704304241875,-529.78344292,0.00032876,2]
[310074283,1704304241884,-500.0,0.00032876,2]
[310074284,1704304241893,-500.0,0.00032876,2]
[310074285,1704304241902,-500.0,0.00032876,2]
[310074286,1704304241911,-500.0,0.00032876,2]
[310074287,1704304241920,-500.0,0.00032876,2]
[310074288,1704304241930,-218.70123936,0.00032876,2]
[310074289,1704304241939,-500.0,0.00032876,2]
[310074290,1704304241949,-500.0,0.00032876,2]
[310074291,1704304241958,-342.24,0.00032876,2]
[310074292,1704304241967,-500.0,0.00032876,2]
[310074293,1704304241977,-500.0,0.00032876,2]
[310074294,1704304241986,-500.0,0.00032876,2]
[310074295,1704304241995,-500.0,0.00032876,2]
[310074296,1704304242005,-500.0,0.00032876,2]
[310074297,1704304242014,-500.0,0.00032876,2]
[310074298,1704304242024,-500.0,0.00032876,2]
[310074299,1704304242034,-500.0,0.00032876,2]
[310074300,1704304242043,-500.0,0.00032876,2]
[310074301,1704304242052,-500.0,0.00032876,2]
[310074302,1704304242061,-500.0,0.00032876,2]
[310074303,1704304242071,-500.0,0.00032876,2]
[310074304,1704304242081,-500.0,0.00032876,2]
[310074305,1704304242090,-500.0,0.00032876,2]
[310074306,1704304242100,-476.1781123,0.00032876,2]
[310074307,1704304242109,-500.0,0.00032876,2]
[310074308,1704304242119,-500.0,0.00032876,2]
[310074309,1704304242128,-500.0,0.00032876,2]
[310074310,1704304242137,-500.0,0.00032876,2]
[310074311,1704304242147,-500.0,0.00032876,2]
[310074312,1704304242157,-500.0,0.00032876,2]
[310074313,1704304242166,-500.0,0.00032876,2]
[310074314,1704304242176,-500.0,0.00032876,2]
[310074315,1704304242186,-500.0,0.00032876,2]
[310074316,1704304242196,-500.0,0.00032876,2]
[310074317,1704304242206,-500.0,0.00032876,2]
[310074318,1704304242215,-500.0,0.00032876,2]
[310074319,1704304242225,-500.0,0.00032876,2]
[310074320,1704304242236,-500.0,0.00032876,2]
[310074321,1704304242247,-500.0,0.00032876,2]
[310074322,1704304242259,-500.0,0.00032876,2]
[310074323,1704304242269,-500.0,0.00032876,2]
[310074324,1704304242279,-500.0,0.00032876,2]
[310074325,1704304242288,-500.0,0.00032876,2]
[310074326,1704304242298,-500.0,0.00032876,2]
[310074327,1704304242308,-500.0,0.00032876,2]
[310074328,1704304242318,-500.0,0.00032876,2]
[310074329,1704304242328,-500.0,0.00032876,2]
[310074330,1704304242338,-500.0,0.00032876,2]
[310074331,1704304242348,-500.0,0.00032876,2]
[310074332,1704304242358,-605.48078037,0.00032876,2]
[310074333,1704304242368,-500.0,0.00032876,2]
[310074334,1704304242378,-500.0,0.00032876,2]
[310074335,1704304242388,-500.0,0.00032876,2]
[310074336,1704304242398,-500.0,0.00032876,2]
[310074337,1704304242408,-500.0,0.00032876,2]
[310074338,1704304242418,-500.0,0.00032876,2]
[310074339,1704304242428,-500.0,0.00032876,2]
[310074340,1704304242438,-500.0,0.00032876,2]
[310074341,1704304242448,-500.0,0.00032876,2]
[310074342,1704304242457,-500.0,0.00032876,2]
[310074343,1704304242468,-500.0,0.00032876,2]
[310074344,1704304242478,-500.0,0.00032876,2]
[310074345,1704304242487,-500.0,0.00032876,2]
[310074346,1704304242497,-500.0,0.00032876,2]
[310074347,1704304242507,-500.0,0.00032876,2]
[310074348,1704304242517,-500.0,0.00032876,2]
[310074349,1704304242527,-500.0,0.00032876,2]
[310074350,1704304242536,-500.0,0.00032876,2]
[310074351,1704304242546,-500.0,0.00032876,2]
[310074352,1704304242556,-500.0,0.00032876,2]
[310074353,1704304242566,-508.47459182,0.00032876,2]
[310074354,1704304242576,-500.0,0.00032876,2]
[310074355,1704304242585,-500.0,0.00032876,2]
[310074356,1704304242595,-500.0,0.00032876,2]
[310074357,1704304242604,-500.0,0.00032876,2]
[310074358,1704304242614,-500.0,0.00032876,2]
[310074359,1704304242624,-500.0,0.00032876,2]
[310074360,1704304242634,-500.0,0.00032876,2]
[310074361,1704304242644,-500.0,0.00032876,2]
[310074362,1704304242654,-500.0,0.00032876,2]
[310074363,1704304242663,-500.0,0.00032876,2]
[310074364,1704304242673,-500.0,0.00032876,2]
[310074365,1704304242683,-500.0,0.00032876,2]
[310074366,1704304242692,-261.24532182,0.00032876,2]
[310074367,1704304242702,-500.0,0.00032876,2]
[310074368,1704304242712,-502.10735754,0.00032876,2]
[310074369,1704304242722,-500.0,0.00032876,2]
[310074370,1704304242733,-500.0,0.00032876,2]
[310074371,1704304242742,-500.0,0.00032876,2]